fUSD/lending_fUSD_20250223
["ID","MTS","AMOUNT","RATE_DAILY","PERIOD"]
[354205940,1740347448940,-500.0,0.0001652,2]
[354205941,1740347448950,-500.0,0.0001652,2]
[354205942,1740347448959,-1066.66,0.0001652,2]
[354205943,1740347448968,-500.0,0.0001652,2]
[354205944,1740347448977,-1030.43,0.0001652,2]
[354205945,1740347448987,-500.0,0.0001652,2]
[354205946,1740347448996,-694.41,0.0001652,2]
[354205947,1740347449006,-1068.47,0.0001652,2]
[354205948,1740347449015,-500.0,0.0001652,2]
[354205949,1740347449025,-500.0,0.0001652,2]
[354205950,1740347449034,-500.0,0.0001652,2]
[354205951,1740347449043,-500.0,0.0001652,2]
[354205952,1740347449052,-500.0,0.0001652,2]
[354205953,1740347449061,-500.0,0.0001652,2]
[354205954,1740347449071,-665.38,0.0001652,2]
[354205955,1740347449080,-500.0,0.0001652,2]
[354205956,1740347449090,-500.0,0.0001652,2]
[354205957,1740347449099,-500.0,0.0001652,2]
[354205958,1740347449108,-756.12,0.0001652,2]
[354205959,1740347449117,-500.0,0.0001652,2]
[354205960,1740347449126,-500.0,0.0001652,2]
[354205961,1740347449135,-500.0,0.0001652,2]
[354205962,1740347449145,-500.0,0.0001652,2]
[354205963,1740347449154,-500.0,0.0001652,2]
[354205964,1740347449163,-500.0,0.0001652,2]
[354205965,1740347449173,-556.13,0.0001652,2]
[354205966,1740347449182,-500.0,0.0001652,2]
[354205967,1740347449191,-500.0,0.0001652,2]
[354205968,1740347449201,-689.0,0.0001652,2]
[354205969,1740347449210,-500.0,0.0001652,2]
[354205970,1740347449219,-500.0,0.0001652,2]
[354205971,1740347449228,-500.0,0.0001652,2]
[354205972,1740347449237,-500.0,0.0001652,2]
[354205973,1740347449246,-500.0,0.0001652,2]
[354205974,1740347449255,-500.0,0.0001652,2]
[354205975,1740347449264,-500.0,0.0001652,2]
[354205976,1740347449272,-500.0,0.0001652,2]
[354205977,1740347449282,-1186.65,0.0001652,2]
[354205978,1740347449291,-935.89,0.0001652,2]
[354205979,1740347449300,-1150.14,0.0001652,2]
[354205980,1740347449314,-882.74,0.0001652,2]
[354205981,1740347449323,-852.67,0.0001652,2]
[354205982,1740347449332,-500.0,0.0001652,2]
[354205983,1740347449341,-1161.44,0.0001652,2]
[354205984,1740347449352,-500.0,0.0001652,2]
[354205985,1740347449361,-500.0,0.0001652,2]
[354205986,1740347449370,-1104.35,0.0001652,2]
[354205987,1740347449380,-500.0,0.0001652,2]
[354205988,1740347449390,-500.0,0.0001652,2]
[354205989,1740347449400,-500.0,0.0001652,2]
[354205990,1740347449410,-500.0,0.0001652,2]
[354205991,1740347449419,-500.0,0.0001652,2]
[354205992,1740347449428,-209.396681,0.0001652,2]
[354205993,1740347449437,-500.0,0.0001652,2]
[354205994,1740347449446,-674.34,0.0001652,2]
[354205995,1740347449455,-500.0,0.0001652,2]
[354205996,1740347449465,-450.8277434,0.0001652,2]
[354205997,1740347449475,-500.0,0.0001652,2]
[354205998,1740347449484,-500.0,0.0001652,2]
[354205999,1740347449493,-1418.97,0.0001652,2]
[354206000,1740347449502,-500.0,0.0001652,2]
[354206001,1740347449511,-1443.16,0.0001652,2]
[354206002,1740347449521,-500.0,0.0001652,2]
[354206003,1740347449530,-500.0,0.0001652,2]
[354206004,1740347449539,-500.0,0.0001652,2]
[354206005,1740347449548,-1148.61,0.0001652,2]
[354206006,1740347449557,-1592.05,0.0001652,2]
[354206007,1740347449566,-741.75,0.0001652,2]
[354206008,1740347449575,-500.0,0.0001652,2]
[354206009,1740347449584,-500.0,0.0001652,2]
[354206010,1740347449594,-1024.59,0.0001652,2]
[354206011,1740347449603,-500.0,0.0001652,2]
[354206012,1740347449614,-512.97,0.0001652,2]
[354206013,1740347449624,-500.0,0.0001652,2]
[354206014,1740347449633,-262.7762915,0.0001652,2]
[354206015,1740347449644,-500.0,0.0001652,2]
[354206016,1740347449653,-536.06606288,0.0001652,2]
[354206017,1740347449662,-500.0,0.0001652,2]
[354206018,1740347449671,-1192.49,0.0001652,2]
[354206019,1740347449680,-500.0,0.0001652,2]
[354206020,1740347449690,-500.0,0.0001652,2]
[354206021,1740347449699,-500.0,0.0001652,2]
[354206022,1740347449708,-500.0,0.0001652,2]
[354206023,1740347449717,-500.0,0.0001652,2]
[354206024,1740347449727,-500.0,0.0001652,2]
[354206025,1740347449736,-500.0,0.0001652,2]
[354206026,1740347449745,-500.0,0.0001652,2]
[354206027,1740347449755,-854.18,0.0001652,2]
[354206028,1740347449765,-500.0,0.0001652,2]
[354206029,1740347449774,-1088.76,0.0001652,2]
[354206030,1740347449783,-732.6,0.0001652,2]
[354206031,1740347449793,-659.84,0.0001652,2]
[354206032,1740347449802,-500.0,0.0001652,2]
[354206033,1740347449811,-500.0,0.0001652,2]
[354206034,1740347449820,-653.0,0.0001652,2]
[354206035,1740347449830,-500.0,0.0001652,2]
[354206036,1740347449839,-500.0,0.0001652,2]
[354206037,1740347449848,-340.85687563,0.0001652,2]
[354206038,1740347449857,-935.35,0.0001652,2]
[354206039,1740347449866,-500.0,0.0001652,2]
[354206040,1740347449876,-2418.62,0.0001652,2]
[354206041,1740347449885,-500.0,0.0001652,2]
[354206042,1740347449894,-500.0,0.0001652,2]
[354206043,1740347449903,-1266.07,0.0001652,2]
[354206044,1740347449912,-1262.09,0.0001652,2]
[354206045,1740347449922,-1280.42,0.0001652,2]
[354206046,1740347449931,-1191.71,0.0001652,2]
[354206047,1740347449940,-500.0,0.0001652,2]
[354206048,1740347449949,-251.14762974,0.0001652,2]
[354206049,1740347449958,-500.0,0.0001652,2]
[354206050,1740347449967,-1980.6,0.0001652,2]
[354206051,1740347449976,-500.0,0.0001652,2]
[354206052,1740347449985,-500.0,0.0001652,2]
[354206053,1740347449994,-1046.04,0.0001652,2]
[354206054,1740347450003,-528.94595342,0.0001652,2]
[354206055,1740347450012,-500.0,0.0001652,2]
[354206056,1740347450021,-1060.17,0.0001652,2]
[354206057,1740347450030,-500.0,0.0001652,2]
[354206058,1740347450039,-1318.77,0.0001652,2]
[354206059,1740347450052,-500.0,0.0001652,2]
[354206060,1740347450061,-1665.99,0.0001652,2]
[354206061,1740347450071,-679.96,0.0001652,2]
[354206062,1740347450080,-500.0,0.0001652,2]
[354206063,1740347450089,-1306.65,0.0001652,2]
[354206064,1740347450098,-1240.07,0.0001652,2]
[354206065,1740347450107,-1209.3,0.0001652,2]
[354206066,1740347450117,-500.0,0.0001652,2]
[354206067,1740347450126,-1348.13,0.0001652,2]
[354206068,1740347450135,-500.0,0.0001652,2]
[354206069,1740347450144,-1278.16,0.0001652,2]
[354206070,1740347450153,-500.0,0.0001652,2]
[354206071,1740347450163,-644.99,0.0001652,2]
[354206072,1740347450172,-1179.95,0.0001652,2]
[354206073,1740347450180,-500.0,0.0001652,2]
[354206074,1740347450190,-151.0,0.0001652,2]
[354206075,1740347450199,-151.0,0.0001652,2]
[354206076,1740347450208,-1921.45,0.0001652,2]
[354206077,1740347450217,-1250.69,0.0001652,2]
[354206078,1740347450226,-500.0,0.0001652,2]
[354206079,1740347450235,-551.9,0.0001652,2]
[354206080,1740347450244,-500.0,0.0001652,2]
[354206081,1740347450253,-1419.37,0.0001652,2]
[354206082,1740347450262,-500.0,0.0001652,2]
[354206083,1740347450271,-500.0,0.0001652,2]
[354206084,1740347450281,-500.0,0.0001652,2]
[354206085,1740347450292,-1897.13,0.0001652,2]
[354206086,1740347450301,-500.0,0.0001652,2]
[354206087,1740347450316,-500.0,0.0001652,2]
[354206088,1740347450325,-1759.92,0.0001652,2]
[354206089,1740347450334,-500.0,0.0001652,2]
[354206090,1740347450343,-500.0,0.0001652,2]
[354206091,1740347450353,-1314.27,0.0001652,2]
[354206092,1740347450362,-1121.19,0.0001652,2]
[354206093,1740347450371,-1278.39,0.0001652,2]
[354206094,1740347450380,-500.0,0.0001652,2]
[354206095,1740347450391,-611.72,0.0001652,2]
[354206096,1740347450400,-580.2,0.0001652,2]
[354206097,1740347450409,-1315.22,0.0001652,2]
[354206098,1740347450418,-779.32,0.0001652,2]
[354206099,1740347450427,-1432.94,0.0001652,2]
[354206100,1740347450436,-1936.72,0.0001652,2]
[354206101,1740347450445,-500.0,0.0001652,2]
[354206102,1740347450456,-1025.61,0.0001652,2]
[354206103,1740347450465,-500.0,0.0001652,2]
[354206104,1740347450474,-1040.98,0.0001652,2]
[354206105,1740347450483,-500.0,0.0001652,2]
[354206106,1740347450493,-929.26,0.0001652,2]
[354206107,1740347450502,-1151.71,0.0001652,2]
[354206108,1740347450511,-500.0,0.0001652,2]
[354206109,1740347450519,-500.0,0.0001652,2]
[354206110,1740347450528,-1270.37,0.0001652,2]
[354206111,1740347450538,-500.0,0.0001652,2]
[354206112,1740347450547,-527.37643207,0.0001652,2]
[354206113,1740347450555,-1424.52,0.0001652,2]
[354206114,1740347450564,-500.0,0.0001652,2]
[354206115,1740347450573,-500.0,0.0001652,2]
[354206116,1740347450582,-500.0,0.0001652,2]
[354206117,1740347450591,-915.21,0.0001652,2]
[354206118,1740347450600,-1105.89,0.0001652,2]
[354206119,1740347450609,-603.72,0.0001652,2]
[354206120,1740347450618,-1031.49,0.0001652,2]
[354206121,1740347450628,-894.79,0.0001652,2]
[354206122,1740347450638,-500.0,0.0001652,2]
[354206123,1740347450647,-2151.71,0.0001652,2]
[354206124,1740347450656,-500.0,0.0001652,2]
[354206125,1740347450665,-1319.38,0.0001652,2]
[354206126,1740347450674,-500.0,0.0001652,2]
[354206127,1740347450684,-701.18,0.0001652,2]
[354206128,1740347450693,-1071.39,0.0001652,2]
[354206129,1740347450701,-500.0,0.0001652,2]
[354206130,1740347450710,-1446.52,0.0001652,2]
[354206131,1740347450719,-652.77,0.0001652,2]
[354206132,1740347450728,-1605.38,0.0001652,2]
[354206133,1740347450737,-523.02,0.0001652,2]
[354206134,1740347450746,-897.04,0.0001652,2]
[354206135,1740347450755,-1252.15,0.0001652,2]
[354206136,1740347450764,-1160.26,0.0001652,2]
[354206137,1740347450773,-2571.84,0.0001652,2]
[354206138,1740347450782,-500.0,0.0001652,2]
[354206139,1740347450791,-1587.03,0.0001652,2]
[354206140,1740347450800,-839.88,0.0001652,2]
[354206141,1740347450808,-776.23,0.0001652,2]
[354206142,1740347450818,-1493.75,0.0001652,2]
[354206143,1740347450827,-1132.73,0.0001652,2]
[354206144,1740347450836,-1187.57,0.0001652,2]
[354206145,1740347450845,-500.0,0.0001652,2]
[354206146,1740347450854,-500.0,0.0001652,2]
[354206147,1740347450863,-937.4,0.0001652,2]
[354206148,1740347450872,-1383.16,0.0001652,2]
[354206149,1740347450881,-500.0,0.0001652,2]
[354206150,1740347450890,-1128.39,0.0001652,2]
[354206151,1740347450900,-735.77,0.0001652,2]
[354206152,1740347450910,-1304.86,0.0001652,2]
[354206153,1740347450919,-500.0,0.0001652,2]
[354206154,1740347450929,-1023.58,0.0001652,2]
[354206155,1740347450937,-590.98,0.0001652,2]
[354206156,1740347450946,-2331.89,0.0001652,2]
[354206157,1740347450955,-500.0,0.0001652,2]
[354206158,1740347450964,-500.0,0.0001652,2]
[354206159,1740347450973,-1675.65,0.0001652,2]
[354206160,1740347450981,-500.0,0.0001652,2]
[354206161,1740347450990,-1138.1,0.0001652,2]
[354206162,1740347450999,-500.0,0.0001652,2]
[354206163,1740347451009,-1224.12,0.0001652,2]
[354206164,1740347451018,-1528.69,0.0001652,2]
[354206165,1740347451027,-7111.47,0.0001652,2]
[354206166,1740347451036,-2610.37,0.0001652,2]
[354206167,1740347451045,-649.06,0.0001652,2]
[354206168,1740347451054,-1926.75,0.0001652,2]
[354206169,1740347451063,-671.84,0.0001652,2]
[354206170,1740347451072,-500.0,0.0001652,2]
[354206171,1740347451081,-500.0,0.0001652,2]
[354206172,1740347451090,-1429.82,0.0001652,2]
[354206173,1740347451099,-1325.66,0.0001652,2]
[354206174,1740347451108,-523.87,0.0001652,2]
[354206175,1740347451117,-1445.85,0.0001652,2]
[354206176,1740347451126,-500.0,0.0001652,2]
[354206177,1740347451135,-549.08,0.0001652,2]
[354206178,1740347451144,-151.0,0.0001652,2]
[354206179,1740347451153,-151.0,0.0001652,2]
[354206180,1740347451162,-500.0,0.0001652,2]
[354206181,1740347451171,-1270.29,0.0001652,2]
[354206182,1740347451180,-178.397152,0.0001652,2]
[354206183,1740347451189,-956.54,0.0001652,2]
[354206184,1740347451199,-1000.36,0.0001652,2]
[354206185,1740347451207,-581.83,0.0001652,2]
[354206186,1740347451216,-500.0,0.0001652,2]
[354206187,1740347451225,-1130.82,0.0001652,2]
[354206188,1740347451234,-500.0,0.0001652,2]
[354206189,1740347451243,-500.0,0.0001652,2]
[354206190,1740347451252,-500.0,0.0001652,2]
[354206191,1740347451261,-1270.32,0.0001652,2]
[354206192,1740347451270,-791.67,0.0001652,2]
[354206193,1740347451279,-547.75,0.0001652,2]
[354206194,1740347451289,-585.12,0.0001652,2]
[354206195,1740347451298,-1004.92,0.0001652,2]
[354206196,1740347451312,-1311.36,0.0001652,2]
[354206197,1740347451321,-819.84,0.0001652,2]
[354206198,1740347451331,-2846.06,0.0001652,2]
[354206199,1740347451340,-500.0,0.0001652,2]
[354206200,1740347451351,-1304.2,0.0001652,2]
[354206201,1740347451360,-730.48,0.0001652,2]
[354206202,1740347451369,-1576.97,0.0001652,2]
[354206203,1740347451380,-1982.8,0.0001652,2]
[354206204,1740347451390,-1993.93,0.0001652,2]
[354206205,1740347451402,-500.0,0.0001652,2]
[354206206,1740347451411,-500.0,0.0001652,2]
[354206207,1740347451421,-500.0,0.0001652,2]
[354206208,1740347451431,-1753.08,0.0001652,2]
[354206209,1740347451441,-500.0,0.0001652,2]
[354206210,1740347451450,-605.12,0.0001652,2]
[354206211,1740347451460,-500.0,0.0001652,2]
[354206212,1740347451470,-1389.68,0.0001652,2]
[354206213,1740347451479,-1084.74,0.0001652,2]
[354206214,1740347451488,-3031.56,0.0001652,2]
[354206215,1740347451498,-869.61,0.0001652,2]
[354206216,1740347451507,-500.0,0.0001652,2]
[354206217,1740347451516,-500.0,0.0001652,2]
[354206218,1740347451525,-500.0,0.0001652,2]
[354206219,1740347451740,-673.13,0.0001652,2]
[354206220,1740347451750,-2398.71,0.0001652,2]
[354206221,1740347451759,-586.99,0.0001652,2]
[354206222,1740347451768,-2553.59,0.0001652,2]
[354206223,1740347451777,-1367.37,0.0001652,2]
[354206224,1740347451788,-500.0,0.0001652,2]
[354206225,1740347451797,-500.0,0.0001652,2]
[354206226,1740347451806,-548.0,0.0001652,2]
[354206227,1740347451815,-500.0,0.0001652,2]
[354206228,1740347451824,-576.33,0.0001652,2]
[354206229,1740347451833,-1343.35,0.0001652,2]
[354206230,1740347451843,-1218.59,0.0001652,2]
[354206231,1740347451851,-782.0,0.0001652,2]
[354206232,1740347451861,-1908.95,0.0001652,2]
[354206233,1740347451871,-2061.4,0.0001652,2]
[354206234,1740347451881,-500.0,0.0001652,2]
[354206235,1740347451891,-500.0,0.0001652,2]
[354206236,1740347451901,-1201.38,0.0001652,2]
[354206237,1740347451910,-500.0,0.0001652,2]
[354206238,1740347451919,-1621.89,0.0001652,2]
[354206239,1740347451928,-500.0,0.0001652,2]
[354206240,1740347451937,-500.0,0.0001652,2]
[354206241,1740347451946,-1403.68,0.0001652,2]
[354206242,1740347451955,-500.0,0.0001652,2]
[354206243,1740347451965,-1309.97,0.0001652,2]
[354206244,1740347451974,-597.08,0.0001652,2]
[354206245,1740347451983,-994.33,0.0001652,2]
[354206246,1740347451992,-500.0,0.0001652,2]
[354206247,1740347452002,-396.65142852,0.0001652,2]
[354206248,1740347452011,-579.55,0.0001652,2]
[354206249,1740347452020,-727.54,0.0001652,2]
[354206250,1740347452029,-500.0,0.0001652,2]
[354206251,1740347452039,-1840.87,0.0001652,2]
[354206252,1740347452048,-868.41,0.0001652,2]
[354206253,1740347452057,-500.0,0.0001652,2]
[354206254,1740347452066,-952.46,0.0001652,2]
[354206255,1740347452075,-500.0,0.0001652,2]
[354206256,1740347452084,-500.0,0.0001652,2]
[354206257,1740347452094,-500.0,0.0001652,2]
[354206258,1740347452104,-2559.75,0.0001652,2]
[354206259,1740347452115,-500.0,0.0001652,2]
[354206260,1740347452125,-564.42,0.0001652,2]
[354206261,1740347452136,-500.0,0.0001652,2]
[354206262,1740347452145,-500.0,0.0001652,2]
[354206263,1740347452154,-1709.67,0.0001652,2]
[354206264,1740347452164,-1913.2,0.0001652,2]
[354206265,1740347452174,-737.03,0.0001652,2]
[354206266,1740347452183,-500.0,0.0001652,2]
[354206267,1740347452192,-500.0,0.0001652,2]
[354206268,1740347452201,-1824.7,0.0001652,2]
[354206269,1740347452211,-931.18,0.0001652,2]
[354206270,1740347452220,-1239.75,0.0001652,2]
[354206271,1740347452229,-500.0,0.0001652,2]
[354206272,1740347452239,-500.0,0.0001652,2]
[354206273,1740347452248,-1897.34,0.0001652,2]
[354206274,1740347452257,-1219.58,0.0001652,2]
[354206275,1740347452266,-500.0,0.0001652,2]
[354206276,1740347452276,-691.25,0.0001652,2]
[354206277,1740347452285,-616.32,0.0001652,2]
[354206278,1740347452294,-2057.3,0.0001652,2]
[354206279,1740347452305,-500.0,0.0001652,2]
[354206280,1740347452316,-1279.11,0.0001652,2]
[354206281,1740347452325,-500.0,0.0001652,2]
[354206282,1740347452334,-1293.45,0.0001652,2]
[354206283,1740347452343,-1190.54,0.0001652,2]
[354206284,1740347452354,-773.32,0.0001652,2]
[354206285,1740347452363,-500.0,0.0001652,2]
[354206286,1740347452373,-993.98,0.0001652,2]
[354206287,1740347452384,-579.48,0.0001652,2]
[354206288,1740347452394,-1423.4,0.0001652,2]
[354206289,1740347452403,-500.0,0.0001652,2]
[354206290,1740347452412,-500.0,0.0001652,2]
[354206291,1740347452421,-1905.18,0.0001652,2]
[354206292,1740347452431,-1524.85,0.0001652,2]
[354206293,1740347452440,-1430.13,0.0001652,2]
[354206294,1740347452449,-500.0,0.0001652,2]
[354206295,1740347452458,-500.0,0.0001652,2]
[354206296,1740347452467,-1396.43,0.0001652,2]
[354206297,1740347452476,-556.76,0.0001652,2]
[354206298,1740347452485,-539.82,0.0001652,2]
[354206299,1740347452494,-500.0,0.0001652,2]
[354206300,1740347452504,-1978.08,0.0001652,2]
[354206301,1740347452513,-500.0,0.0001652,2]
[354206302,1740347452522,-2015.6,0.0001652,2]
[354206303,1740347452531,-734.67,0.0001652,2]
[354206304,1740347452544,-775.28,0.0001652,2]
[354206305,1740347452554,-1041.98,0.0001652,2]
[354206306,1740347452563,-500.0,0.0001652,2]
[354206307,1740347452573,-151.0,0.0001652,2]
[354206308,1740347452583,-151.0,0.0001652,2]
[354206309,1740347452592,-500.0,0.0001652,2]
[354206310,1740347452602,-729.64,0.0001652,2]
[354206311,1740347452612,-1379.3,0.0001652,2]
[354206312,1740347452622,-151.0,0.0001652,2]
[354206313,1740347452631,-151.0,0.0001652,2]
[354206314,1740347452640,-500.0,0.0001652,2]
[354206315,1740347452650,-500.0,0.0001652,2]
[354206316,1740347452659,-1386.47,0.0001652,2]
[354206317,1740347452669,-500.0,0.0001652,2]
[354206318,1740347452678,-977.76,0.0001652,2]
[354206319,1740347452688,-500.0,0.0001652,2]
[354206320,1740347452697,-1473.18,0.0001652,2]
[354206321,1740347452706,-832.83,0.0001652,2]
[354206322,1740347452715,-500.0,0.0001652,2]
[354206323,1740347452724,-7141.13,0.0001652,2]
[354206324,1740347452734,-875.93,0.0001652,2]
[354206325,1740347452743,-1644.82,0.0001652,2]
[354206326,1740347452753,-2246.51,0.0001652,2]
[354206327,1740347452762,-500.0,0.0001652,2]
[354206328,1740347452771,-500.0,0.0001652,2]
[354206329,1740347452780,-2480.98,0.0001652,2]
[354206330,1740347452790,-500.0,0.0001652,2]
[354206331,1740347452799,-500.0,0.0001652,2]
[354206332,1740347452808,-4227.28,0.0001652,2]
[354206333,1740347452817,-925.89,0.0001652,2]
[354206334,1740347452826,-500.0,0.0001652,2]
[354206335,1740347452835,-1763.3,0.0001652,2]
[354206336,1740347452845,-1063.63,0.0001652,2]
[354206337,1740347452854,-500.0,0.0001652,2]
[354206338,1740347452864,-712.8,0.0001652,2]
[354206339,1740347452874,-903.0,0.0001652,2]
[354206340,1740347452883,-1632.83,0.0001652,2]
[354206341,1740347452893,-683.18,0.0001652,2]
[354206342,1740347452902,-1765.02,0.0001652,2]
[354206343,1740347452912,-500.0,0.0001652,2]
[354206344,1740347452921,-2040.64,0.0001652,2]
[354206345,1740347452930,-595.65,0.0001652,2]
[354206346,1740347452940,-500.0,0.0001652,2]
[354206347,1740347452949,-1325.3,0.0001652,2]
[354206348,1740347452959,-2192.78,0.0001652,2]
[354206349,1740347452968,-500.0,0.0001652,2]
[354206350,1740347452978,-2192.58,0.0001652,2]
[354206351,1740347452987,-530.43,0.0001652,2]
[354206352,1740347452996,-1301.87,0.0001652,2]
[354206353,1740347453007,-500.0,0.0001652,2]
[354206354,1740347453016,-500.0,0.0001652,2]
[354206355,1740347453025,-2277.73,0.0001652,2]
[354206356,1740347453034,-1508.83,0.0001652,2]
[354206357,1740347453045,-2565.97,0.0001652,2]
[354206358,1740347453055,-500.0,0.0001652,2]
[354206359,1740347453064,-500.0,0.0001652,2]
[354206360,1740347453074,-2418.27,0.0001652,2]
[354206361,1740347453084,-960.53,0.0001652,2]
[354206362,1740347453093,-500.0,0.0001652,2]
[354206363,1740347453103,-500.0,0.0001652,2]
[354206364,1740347453113,-500.0,0.0001652,2]
[354206365,1740347453122,-500.0,0.0001652,2]
[354206366,1740347453132,-1795.68,0.0001652,2]
[354206367,1740347453142,-1365.76,0.0001652,2]
[354206368,1740347453151,-500.0,0.0001652,2]
[354206369,1740347453161,-734.7,0.0001652,2]
[354206370,1740347453170,-5611.28,0.0001652,2]
[354206371,1740347453179,-1137.25,0.0001652,2]
[354206372,1740347453189,-500.0,0.0001652,2]
[354206373,1740347453198,-2042.82,0.0001652,2]
[354206374,1740347453209,-500.0,0.0001652,2]
[354206375,1740347453218,-1458.9,0.0001652,2]
[354206376,1740347453228,-1936.18,0.0001652,2]
[354206377,1740347453237,-1237.73,0.0001652,2]
[354206378,1740347453246,-908.4,0.0001652,2]
[354206379,1740347453256,-500.0,0.0001652,2]
[354206380,1740347453265,-1398.48,0.0001652,2]
[354206381,1740347453275,-500.0,0.0001652,2]
[354206382,1740347453284,-500.0,0.0001652,2]
[354206383,1740347453293,-2027.46,0.0001652,2]
[354206384,1740347453303,-674.01,0.0001652,2]
[354206385,1740347453316,-633.53596532,0.0001652,2]
[354206386,1740347453325,-1310.88,0.0001652,2]
[354206387,1740347453335,-500.0,0.0001652,2]
[354206388,1740347453344,-5594.3,0.0001652,2]
[354206389,1740347453354,-4494.08,0.0001652,2]
[354206390,1740347453364,-2134.8,0.0001652,2]
[354206391,1740347453374,-3730.92,0.0001652,2]
[354206392,1740347453388,-543.02,0.0001652,2]
[354206393,1740347453399,-500.0,0.0001652,2]
[354206394,1740347453410,-1432.43,0.0001652,2]
[354206395,1740347453422,-500.0,0.0001652,2]
[354206396,1740347453433,-2532.19,0.0001652,2]
[354206397,1740347453443,-1187.26,0.0001652,2]
[354206398,1740347453452,-2596.47,0.0001652,2]
[354206399,1740347453461,-500.0,0.0001652,2]
[354206400,1740347453471,-2450.28,0.0001652,2]
[354206401,1740347453481,-500.0,0.0001652,2]
[354206402,1740347453492,-1285.42,0.0001652,2]
[354206403,1740347453502,-3777.26,0.0001652,2]
[354206404,1740347453511,-500.0,0.0001652,2]
[354206405,1740347453520,-3109.73,0.0001652,2]
[354206406,1740347453530,-500.0,0.0001652,2]
[354206407,1740347453542,-500.0,0.0001652,2]
[354206408,1740347453552,-500.0,0.0001652,2]
[354206409,1740347453562,-500.0,0.0001652,2]
[354206410,1740347453572,-1073.67,0.0001652,2]
[354206411,1740347453581,-1256.88,0.0001652,2]
[354206412,1740347453590,-500.0,0.0001652,2]
[354206413,1740347453600,-500.0,0.0001652,2]
[354206414,1740347453612,-500.0,0.0001652,2]
[354206415,1740347453621,-1318.55,0.0001652,2]
[354206416,1740347453630,-693.93,0.0001652,2]
[354206417,1740347453639,-2433.29,0.0001652,2]
[354206418,1740347453648,-13202.62,0.0001652,2]
[354206419,1740347453657,-500.0,0.0001652,2]
[354206420,1740347453667,-500.0,0.0001652,2]
[354206421,1740347453676,-5687.3,0.0001652,2]
[354206422,1740347453686,-517.7,0.0001652,2]
[354206423,1740347453695,-2210.0,0.0001652,2]
[354206424,1740347453706,-500.0,0.0001652,2]
[354206425,1740347453715,-500.0,0.0001652,2]
[354206426,1740347453724,-3030.78,0.0001652,2]
[354206427,1740347453734,-1916.71,0.0001652,2]
[354206428,1740347453743,-3475.55,0.0001652,2]
[354206429,1740347453753,-578.80920942,0.0001652,2]
[354206430,1740347453763,-500.0,0.0001652,2]
[354206431,1740347453772,-826.97,0.0001652,2]
[354206432,1740347453781,-500.0,0.0001652,2]
[354206433,1740347453790,-500.0,0.0001652,2]
[354206434,1740347453799,-3421.95,0.0001652,2]
[354206435,1740347453808,-500.0,0.0001652,2]
[354206436,1740347453817,-2822.72,0.0001652,2]
[354206437,1740347453826,-1931.08,0.0001652,2]
[354206438,1740347453835,-681.32,0.0001652,2]
[354206439,1740347453845,-2748.75,0.0001652,2]